bitfinex-derivatives/quotes_BTCF0:USTF0_20251002
["timestamp","ask_amount","ask_price","bid_price","bid_amount"]
[1759377953899,0.35416036,118910.0,118900.0,1.56370753]
[1759377954993,0.04482643,118910.0,118900.0,1.56370753]
[1759377956001,0.04482643,118910.0,118900.0,0.79538753]
[1759377956298,0.36720036,118910.0,118900.0,1.55000753]
[1759377957104,0.36720036,118910.0,118900.0,0.78172753]
[1759377957305,0.36720036,118910.0,118900.0,1.55000753]
[1759377957706,0.36720036,118910.0,118900.0,1.56298753]
[1759377958905,0.05786643,118910.0,118900.0,1.56298753]
[1759377959105,0.36720036,118910.0,118900.0,1.56298753]
[1759377959301,0.35710982,118910.0,118900.0,1.56298753]
[1759377959506,0.04777589,118910.0,118900.0,1.56298753]
[1759377959705,0.35710982,118910.0,118900.0,1.63859452]
[1759377959904,0.34406982,118910.0,118900.0,1.63859452]
[1759377961000,0.82812632,118910.0,118900.0,0.54800059]
[1759377961195,0.84116632,118910.0,118900.0,0.46393699]
[1759377961399,1.60944632,118910.0,118900.0,0.02753]
[1759377961599,1.60944632,118910.0,118900.0,0.005]
[1759377962096,1.60944632,118910.0,118900.0,0.02665]
[1759377962300,1.20944632,118910.0,118900.0,0.80050703]
[1759377962604,0.42812632,118910.0,118900.0,0.81348703]
[1759377964010,0.42812632,118910.0,118900.0,0.88909402]
[1759377965004,0.44116632,118910.0,118900.0,0.88909402]
[1759377965211,0.44116632,118910.0,118900.0,0.5041531]
[1759377966209,0.42812632,118910.0,118900.0,0.5041531]
[1759377966409,0.42812632,118910.0,118900.0,0.81348703]
[1759377967115,0.11879239,118910.0,118900.0,0.81348703]
[1759377967313,0.42812632,118910.0,118900.0,0.81348703]
[1759377968109,0.42812632,118910.0,118900.0,0.5041531]
[1759377968110,0.44116632,118910.0,118900.0,0.5041531]
[1759377968307,0.44116632,118910.0,118900.0,0.4911731]
[1759377968612,0.84966139,118910.0,118900.0,0.0463095]
[1759377968804,0.84966139,118910.0,118900.0,0.0246595]
[1759377969413,0.83957025,118910.0,118900.0,0.0246595]
[1759377970403,1.20037025,118910.0,118900.0,0.005]
[1759377971503,0.43957025,118910.0,118900.0,0.13043792]
[1759377971707,1.20785025,118910.0,118900.0,0.14341792]
[1759377972011,1.20785025,118910.0,118900.0,0.1107136]
[1759377972512,1.20785025,118910.0,118900.0,0.4715136]
[1759377972909,0.43957025,118910.0,118900.0,0.4715136]
[1759377973215,1.20785025,118910.0,118900.0,0.1107136]
[1759377975914,1.20785025,118910.0,118900.0,0.02665]
[1759377977921,1.56865025,118910.0,118900.0,0.02665]
[1759377978119,1.56865025,118910.0,118900.0,0.005]
[1759377981919,1.56865025,118910.0,118900.0,0.02613]
[1759377986126,1.55855855,118910.0,118900.0,0.02613]
[1759377987024,1.55855855,118910.0,118900.0,0.005]
[1759377988920,1.95855855,118910.0,118900.0,0.005]
[1759377989922,1.64922462,118910.0,118900.0,0.005]
[1759377990122,1.95855855,118910.0,118900.0,0.005]
[1759377990319,1.92427481,118910.0,118900.0,0.005]
[1759377992717,1.15599481,118910.0,118900.0,0.005]
[1759377993026,1.92419481,118910.0,118900.0,0.005]
[1759377999434,1.52419481,118910.0,118900.0,0.005]
[1759378004238,0.75599481,118910.0,118900.0,0.005]
[1759378004438,1.52415481,118910.0,118900.0,0.005]
[1759378004645,1.52411481,118910.0,118900.0,0.005]
[1759378005237,1.514023,118910.0,118900.0,0.005]
[1759378005438,0.78708049,118910.0,118900.0,0.005]
[1759378005639,1.55520049,118910.0,118900.0,0.005]
[1759378011048,1.55516049,118910.0,118900.0,0.005]
[1759378011246,0.78708049,118910.0,118900.0,0.005]
[1759378011447,1.55516049,118910.0,118900.0,0.005]
[1759378014047,0.78708049,118910.0,118900.0,0.005]
[1759378014248,1.57784317,118910.0,118900.0,0.005]
[1759378014446,1.57784317,118910.0,118900.0,0.02751]
[1759378014752,1.57780317,118910.0,118900.0,0.02751]
[1759378015343,0.53471298,118910.0,118900.0,0.02751]
[1759378015544,1.57780317,118910.0,118900.0,0.02751]
[1759378015748,1.57780317,118910.0,118900.0,0.1115736]
[1759378016947,0.44896317,118910.0,118900.0,0.1115736]
[1759378017153,0.94195298,118910.0,118900.0,0.4856336]
[1759378017950,1.21700317,118910.0,118900.0,0.4856336]
[1759378019451,0.94195298,118910.0,118900.0,0.4856336]
[1759378019751,1.21700317,118910.0,118900.0,0.4856336]
[1759378020147,0.94195298,118910.0,118900.0,0.4856336]
[1759378020356,1.21700317,118910.0,118900.0,0.4856336]
[1759378020547,0.44896317,118910.0,118900.0,0.4856336]
[1759378020747,1.21700317,118910.0,118900.0,0.4856336]
[1759378020947,1.21696317,118910.0,118900.0,0.4723736]
[1759378022152,1.19428049,118910.0,118900.0,0.4723736]
[1759378024350,1.19424049,118910.0,118900.0,0.4723736]
[1759378028257,1.18414928,118910.0,118900.0,0.4723736]
[1759378032857,1.18406928,118910.0,118900.0,0.4723736]
[1759378034062,0.90901909,118910.0,118900.0,0.4723736]
[1759378034261,1.18406928,118910.0,118900.0,0.4723736]
[1759378035062,1.18406928,118910.0,118900.0,0.38831]
[1759378039868,1.17397807,118910.0,118900.0,0.38831]
[1759378040756,0.89892788,118910.0,118900.0,0.38831]
[1759378040961,1.17397807,118910.0,118900.0,0.38831]
[1759378047564,1.17377807,118910.0,118900.0,0.38831]
[1759378049865,0.40609807,118910.0,118900.0,0.38831]
[1759378050065,1.17373807,118910.0,118900.0,0.38831]
[1759378052266,1.20803472,118910.0,118900.0,0.38831]
[1759378052466,0.89868788,118910.0,118900.0,0.38831]
[1759378052669,1.20803472,118910.0,118900.0,0.38831]
[1759378053474,0.44039472,118910.0,118900.0,0.38831]
[1759378053771,1.20795472,118910.0,118900.0,0.38831]
[1759378054384,0.44039472,118910.0,118900.0,0.38831]
[1759378054784,1.20795472,118910.0,118900.0,0.38831]
[1759378055384,0.44039472,118910.0,118900.0,0.40144]
[1759378055585,1.20795472,118910.0,118900.0,0.40144]
[1759378056285,1.20795472,118910.0,118900.0,0.38831]
[1759378058183,0.11800788,118910.0,118900.0,1.19485044]
[1759378058390,0.82076636,118910.0,118900.0,1.27045743]
[1759378058582,0.90482286,118910.0,118900.0,1.27045743]
[1759378059288,0.90482286,118910.0,118900.0,1.19485044]
[1759378059475,0.90482286,118910.0,118900.0,0.79485044]
[1759378061688,0.90482286,118910.0,118900.0,0.4855036]
[1759378061993,1.2141697,118910.0,118900.0,0.71078684]
[1759378062185,1.2270097,118910.0,118900.0,0.69765684]
[1759378062386,1.2270097,118910.0,118900.0,0.38831]
[1759378062693,0.91766286,118910.0,118900.0,0.38831]
[1759378062893,1.2270097,118910.0,118900.0,0.40144]
[1759378064099,1.2270097,118910.0,118900.0,0.71078684]
[1759378064388,1.2141697,118910.0,118900.0,0.71078684]
[1759378068801,1.2040788,118910.0,118900.0,0.71078684]
[1759378070308,1.2040788,118910.0,118900.0,0.78639383]
[1759378070900,1.5708888,118910.0,118900.0,0.02751]
[1759378071097,1.2100888,118910.0,118900.0,0.02751]
[1759378071300,1.5708888,118910.0,118900.0,0.02751]
[1759378073405,1.2100888,118910.0,118900.0,0.02751]
[1759378074804,0.4425688,118910.0,118900.0,0.02751]
[1759378075006,1.2098488,118910.0,118900.0,0.02751]
[1759378075999,0.4425688,118910.0,118900.0,0.02751]
[1759378076199,1.2098088,118910.0,118900.0,0.02751]
[1759378079212,0.4425688,118910.0,118900.0,0.02751]
[1759378079506,1.2097688,118910.0,118900.0,0.02751]
[1759378080312,0.4425688,118910.0,118900.0,0.1115736]
[1759378080503,1.2097688,118910.0,118900.0,0.1115736]
[1759378081304,0.4425688,118910.0,118900.0,0.43393044]
[1759378081608,0.81031546,118910.0,118900.0,0.79473044]
[1759378082309,0.03306487,118910.0,118900.0,0.79473044]
[1759378082611,0.79001,118910.0,118900.0,0.79473044]
[1759378082797,0.02285,118910.0,118900.0,0.79473044]
[1759378082998,0.79001,118910.0,118900.0,0.79473044]
[1759378083509,1.09935684,118910.0,118900.0,0.79473044]
[1759378084512,1.14211732,118910.0,118900.0,0.79473044]
[1759378084710,1.22617382,118910.0,118900.0,0.79473044]
[1759378086109,0.04276048,118910.0,118900.0,1.19473044]
[1759378086312,0.85622688,118920.0,118910.0,0.1202965]
[1759378086511,1.16557372,118920.0,118910.0,0.80973458]
[1759378087812,1.17357372,118920.0,118910.0,0.80973458]
[1759378088013,1.2159099,118920.0,118910.0,0.80973458]
[1759378088711,1.2079099,118920.0,118910.0,0.82173458]
[1759378090911,1.2919593,118920.0,118910.0,0.82173458]
[1759378091214,0.89848306,118920.0,118910.0,0.82173458]
[1759378091911,0.83222618,118920.0,118910.0,0.82173458]
[1759378092413,1.14157302,118920.0,118910.0,0.82173458]
[1759378093113,1.14157302,118920.0,118910.0,0.51238774]
[1759378093413,0.83222618,118920.0,118910.0,0.82173458]
[1759378093605,1.14157302,118920.0,118910.0,0.82173458]
[1759378095505,1.14157302,118920.0,118910.0,0.80244334]
[1759378096310,1.14157302,118920.0,118910.0,0.82214809]
[1759378097917,1.13148326,118920.0,118910.0,0.82214809]
[1759378098115,1.13148326,118920.0,118910.0,0.89775508]
[1759378098713,0.05509642,118920.0,118910.0,0.89775508]
[1759378098918,1.13140326,118920.0,118910.0,0.89775508]
[1759378099118,0.82205642,118920.0,118910.0,0.87805033]
[1759378099321,0.82205642,118920.0,118910.0,0.89799348]
[1759378101920,0.05509642,118920.0,118910.0,0.89799348]
[1759378102114,0.36444326,118920.0,118910.0,0.89799348]
[1759378102313,0.36444326,118920.0,118910.0,0.50459014]
[1759378102619,0.7638495,118920.0,118910.0,0.03194315]
[1759378103008,0.7638495,118920.0,118910.0,0.05392315]
[1759378112229,0.420108,118920.0,118910.0,0.05392315]
[1759378118828,0.420108,118920.0,118910.0,0.13797965]
[1759378123426,0.420108,118920.0,118910.0,0.1180365]
[1759378124331,0.420108,118920.0,118910.0,0.13736197]
[1759378126236,0.420108,118920.0,118910.0,0.15035197]
[1759378127038,0.420108,118920.0,118910.0,0.1310265]
[1759378127636,0.414098,118920.0,118910.0,0.15021888]
[1759378128031,1.0966886,118920.0,118910.0,0.15021888]
[1759378128232,1.0966886,118920.0,118910.0,0.51101888]
[1759378128434,1.0865986,118920.0,118910.0,0.58662587]
[1759378129030,0.81164642,118920.0,118910.0,0.58662587]
[1759378129234,0.89569582,118920.0,118910.0,0.58662587]
[1759378130639,1.170648,118920.0,118910.0,0.58662587]
[1759378132343,0.04500642,118920.0,118910.0,0.86157805]
[1759378134149,0.04500642,118920.0,118910.0,0.86210396]
[1759378134547,0.85728421,118930.0,118920.0,0.1193294]
[1759378134845,0.09072421,118930.0,118920.0,0.75508158]
[1759378135051,0.78907,118930.0,118920.0,0.75508158]
[1759378136049,0.02251,118930.0,118920.0,0.75508158]
[1759378136450,0.02251,118930.0,118920.0,0.77508158]
[1759378137251,0.04814586,118930.0,118920.0,0.77508158]
[1759378137752,0.04814586,118930.0,118920.0,0.85068857]
[1759378138149,0.02563586,118930.0,118920.0,1.34067276]
[1759378138346,0.94121329,118940.0,118930.0,0.1193224]
[1759378138651,0.85717799,118940.0,118930.0,0.75507458]
[1759378139348,0.85717799,118940.0,118930.0,0.4801224]
[1759378139549,0.86017799,118940.0,118930.0,0.4961224]
[1759378140151,0.88597781,118940.0,118930.0,0.4961224]
[1759378141251,0.11945781,118940.0,118930.0,0.4961224]
[1759378141451,0.05130982,118940.0,118930.0,0.77107458]
[1759378141955,0.8545194,118960.0,118950.0,0.1193082]
[1759378142154,0.8545194,118960.0,118950.0,0.4801082]
[1759378142749,0.87992123,118960.0,118950.0,0.4801082]
[1759378143555,0.87992123,118960.0,118950.0,0.4961082]
[1759378143758,0.96394243,118960.0,118950.0,0.4961082]
[1759378144557,0.96394243,118960.0,118950.0,0.4801082]
[1759378146859,0.87992123,118960.0,118950.0,0.4801082]
[1759378147455,0.96394243,118960.0,118950.0,0.4801082]
[1759378148756,0.89837303,118960.0,118950.0,0.4801082]
[1759378152761,0.04791183,118960.0,118950.0,0.75506038]
[1759378153556,0.04791183,118960.0,118950.0,1.15506038]
[1759378153757,0.02540183,118960.0,118950.0,1.15506038]
[1759378153951,0.93943381,118970.0,118960.0,0.1193012]
[1759378154958,0.96520458,118970.0,118960.0,0.1193012]
[1759378155865,0.96520458,118970.0,118960.0,0.1213012]
[1759378156466,0.19896458,118970.0,118960.0,0.1213012]
[1759378156660,0.96512458,118970.0,118960.0,0.1213012]
[1759378160758,0.96512458,118970.0,118960.0,0.39625338]
[1759378161354,0.96512458,118970.0,118960.0,0.1213012]
[1759378162060,0.81444077,118970.0,118960.0,0.1213012]
[1759378162366,0.81444077,118970.0,118960.0,0.4821012]
[1759378162769,0.04828077,118970.0,118960.0,0.4821012]
[1759378163064,0.81432077,118970.0,118960.0,0.75705338]
[1759378164869,0.89833487,118970.0,118960.0,0.75705338]
[1759378165369,0.13229487,118970.0,118960.0,0.75705338]
[1759378165570,0.89829487,118970.0,118960.0,0.75705338]
[1759378171075,0.81428077,118970.0,118960.0,0.75705338]
[1759378171377,0.04828077,118970.0,118960.0,0.75705338]
[1759378171678,0.81416077,118970.0,118960.0,0.75705338]
[1759378172376,1.2071583,118970.0,118960.0,0.79108463]
[1759378173874,0.13229487,118970.0,118960.0,0.79108463]
[1759378174074,1.2071183,118970.0,118960.0,0.79108463]
[1759378174276,1.2071183,118970.0,118960.0,0.4821012]
[1759378174477,1.2071183,118970.0,118960.0,0.79108463]
[1759378176778,1.2071183,118970.0,118960.0,0.78908463]
[1759378177177,1.2071183,118970.0,118960.0,0.79408463]
[1759378177573,0.89813487,118970.0,118960.0,0.79408463]
[1759378177773,1.2071183,118970.0,118960.0,0.79408463]
[1759378179374,0.89813487,118970.0,118960.0,0.79408463]
[1759378180680,0.13229487,118970.0,118960.0,0.79408463]
[1759378180881,0.89801487,118970.0,118960.0,0.79408463]
[1759378181783,0.13229487,118970.0,118960.0,0.79408463]
[1759378181977,0.81396077,118970.0,118960.0,0.4851012]
[1759378182178,0.81396077,118970.0,118960.0,0.79408463]
[1759378183283,0.04828077,118970.0,118960.0,0.79408463]
[1759378183485,0.79145077,118970.0,118960.0,0.79408463]
[1759378183784,0.76568,118970.0,118960.0,0.79408463]
[1759378184080,1.24681596,118980.0,118970.0,0.1186641]
[1759378184283,0.02261,118980.0,118970.0,0.78844753]
[1759378184476,0.86217199,118980.0,118970.0,0.78844753]
[1759378185286,0.77816489,118980.0,118970.0,0.78844753]
[1759378185481,0.80375065,118980.0,118970.0,0.78844753]
[1759378186379,0.80375065,118980.0,118970.0,0.79044753]
[1759378187287,0.03811065,118980.0,118970.0,0.79044753]
[1759378187486,0.80375065,118980.0,118970.0,0.79044753]
[1759378188186,0.88775775,118980.0,118970.0,0.79044753]
[1759378188387,1.19674118,118980.0,118970.0,0.79044753]
[1759378195389,1.19674118,118980.0,118970.0,0.39745]
[1759378195582,1.19674118,118980.0,118970.0,0.4814641]
[1759378195786,0.88775775,118980.0,118970.0,0.4814641]
[1759378195987,1.19674118,118980.0,118970.0,0.4814641]
[1759378199092,1.90572461,118980.0,118970.0,0.002]
[1759378199299,2.26952461,118980.0,118970.0,0.002]
[1759378199686,1.96054118,118980.0,118970.0,0.002]
[1759378199890,2.26952461,118980.0,118970.0,0.002]
[1759378200992,1.65155775,118980.0,118970.0,0.002]
[1759378201193,2.26952461,118980.0,118970.0,0.002]
[1759378202099,2.29203037,118980.0,118970.0,0.002]
[1759378202297,2.26952461,118980.0,118970.0,0.002]
[1759378205602,2.26924461,118980.0,118970.0,0.002]
[1759378208905,1.50388461,118980.0,118970.0,0.002]
[1759378209303,2.26916461,118980.0,118970.0,0.002]
[1759378216108,0.1068982,118950.0,118940.0,0.03459]
[1759378216303,1.53263983,118950.0,118940.0,0.07555804]
[1759378216508,0.1069053,118940.0,118930.0,0.49050872]
[1759378216713,0.41588873,118940.0,118930.0,0.41495068]
[1759378217102,0.41588873,118940.0,118930.0,0.39357068]
[1759378217310,0.1069124,118930.0,118920.0,0.47089804]
[1759378217511,1.18109583,118930.0,118920.0,0.47089804]
[1759378217812,0.1052394,118920.0,118910.0,0.47089804]
[1759378218012,0.41422283,118920.0,118910.0,0.86393797]
[1759378218216,0.8704394,118920.0,118910.0,0.78837993]
[1759378218510,1.17942283,118920.0,118910.0,0.78837993]
[1759378219507,0.41422283,118920.0,118910.0,0.78837993]
[1759378219714,1.17946283,118920.0,118910.0,0.78837993]
[1759378221324,1.19434713,118920.0,118910.0,0.78837993]
[1759378221620,1.50333056,118920.0,118910.0,0.39534]
[1759378222223,1.19434713,118920.0,118910.0,0.39534]
[1759378223018,0.42910713,118920.0,118910.0,0.39534]
[1759378223220,1.19434713,118920.0,118910.0,0.39534]
[1759378227021,1.19438713,118920.0,118910.0,0.39534]
[1759378227323,0.8854037,118920.0,118910.0,0.39534]
[1759378227521,1.19438713,118920.0,118910.0,0.39534]
[1759378230228,0.42910713,118920.0,118910.0,0.39534]
[1759378230426,1.19434713,118920.0,118910.0,0.39534]
[1759378230627,0.8853637,118920.0,118910.0,0.39534]
[1759378230823,1.19434713,118920.0,118910.0,0.39534]
[1759378234228,1.1602839,118920.0,118910.0,0.39534]
[1759378236031,0.1059265,118910.0,118900.0,0.39562]
[1759378236238,0.3808467,118910.0,118900.0,0.4796836]
[1759378237032,0.3808467,118910.0,118900.0,0.4816836]
[1759378237939,0.3808467,118910.0,118900.0,0.4796836]
[1759378240541,0.3808467,118910.0,118900.0,0.39562]
[1759378241838,0.3808467,118910.0,118900.0,0.4796836]
[1759378244442,0.3808467,118910.0,118900.0,0.39562]
[1759378244942,0.1208047,118920.0,118910.0,0.1185865]
[1759378245138,1.1609249,118920.0,118910.0,0.39533]
[1759378245446,1.1609249,118920.0,118910.0,0.03453]
[1759378246236,1.18345012,118920.0,118910.0,0.03453]
[1759378246541,1.1609249,118920.0,118910.0,0.03453]
[1759378249142,1.5609249,118920.0,118910.0,0.03453]
[1759378249443,1.58346122,118920.0,118910.0,0.03453]
[1759378251339,0.81826122,118920.0,118910.0,0.03453]
[1759378251540,1.58342122,118920.0,118910.0,0.03453]
[1759378254542,1.5608849,118920.0,118910.0,0.03453]
[1759378255245,0.0840565,118910.0,118900.0,0.4790727]
[1759378255442,0.3817067,118910.0,118900.0,0.4790727]
[1759378256443,0.1067865,118910.0,118900.0,0.4790727]
[1759378256742,0.02273,118910.0,118900.0,0.7539938]
[1759378256944,0.8491765,118910.0,118900.0,0.4790736]
[1759378257237,0.87665589,118920.0,118910.0,0.1178865]
[1759378257433,0.8718617,118920.0,118910.0,0.39463]
[1759378257836,0.8718617,118920.0,118910.0,0.4786865]
[1759378258237,0.88280471,118920.0,118910.0,0.4786865]
[1759378259242,0.11772471,118920.0,118910.0,0.4786865]
[1759378259442,0.88280471,118920.0,118910.0,0.4786865]
[1759378261446,0.39264491,118920.0,118910.0,0.39463]
[1759378261637,0.88276471,118920.0,118910.0,0.4786865]
[1759378263645,0.11772471,118920.0,118910.0,0.4786865]
[1759378263846,0.03367301,118920.0,118910.0,0.7536067]
[1759378264041,0.88272251,118920.0,118910.0,0.7536067]
[1759378264846,0.88272251,118920.0,118910.0,0.4786865]
[1759378267749,0.11772251,118920.0,118910.0,0.4786865]
[1759378267953,0.88268251,118920.0,118910.0,0.4786865]
[1759378281759,0.79863301,118920.0,118910.0,0.4786865]
[1759378282258,0.79847301,118920.0,118910.0,0.4786865]
[1759378284362,0.03367301,118920.0,118910.0,0.4786865]
[1759378284563,0.79847301,118920.0,118910.0,0.4786865]
[1759378285365,0.03367301,118920.0,118910.0,0.7536067]
[1759378285560,0.77574301,118920.0,118910.0,0.7536067]
[1759378286160,0.01094301,118920.0,118910.0,0.8786865]
[1759378286361,0.5287,118930.0,118920.0,0.1190495]
[1759378286561,0.78654,118930.0,118920.0,0.7547697]
[1759378287457,0.79728872,118930.0,118920.0,0.4798495]
[1759378289869,0.79724872,118930.0,118920.0,0.4798495]
[1759378292878,0.88129112,118930.0,118920.0,0.4798495]
[1759378294878,1.15621132,118930.0,118920.0,0.4798495]
[1759378296280,1.19051199,118930.0,118920.0,0.4798495]
[1759378300480,1.19051199,118930.0,118920.0,0.3958]
[1759378305992,1.18042269,118930.0,118920.0,0.3958]
[1759378306694,1.48964356,118930.0,118920.0,0.3608]
[1759378306894,0.0925595,118920.0,118910.0,0.47090804]
[1759378307193,0.38811746,118920.0,118910.0,0.47090804]
[1759378308986,0.38811746,118920.0,118910.0,0.39735]
[1759378309394,0.38811746,118920.0,118910.0,0.47290804]
[1759378313198,0.38811746,118920.0,118910.0,0.78212891]
[1759378313693,0.0925594,118920.0,118910.0,0.86618541]
[1759378313894,0.0840494,118920.0,118910.0,0.86618541]
[1759378314094,0.0840494,118920.0,118910.0,0.95725473]
[1759378314990,1.17696549,118930.0,118920.0,0.1188495]
[1759378315199,1.17696549,118930.0,118920.0,0.78887037]
[1759378316796,1.17696549,118930.0,118920.0,0.4796495]
[1759378317101,1.17696549,118930.0,118920.0,0.3956]
[1759378319502,0.41252549,118930.0,118920.0,0.3956]
[1759378319802,1.17928549,118930.0,118920.0,0.41491546]
[1759378320603,1.17924549,118930.0,118920.0,0.41491546]
[1759378321904,0.41252549,118930.0,118920.0,0.3956]
[1759378322105,1.17972549,118930.0,118920.0,0.3956]
[1759378324599,1.17972549,118930.0,118920.0,0.4796494]
[1759378325505,1.17972549,118930.0,118920.0,0.3956]
[1759378328908,1.17972549,118930.0,118920.0,0.0348]
[1759378338014,0.87050462,118930.0,118920.0,0.0348]
[1759378338209,1.17972549,118930.0,118920.0,0.0348]
[1759378341613,0.10330462,118930.0,118920.0,0.42807027]
[1759378341814,0.10330462,118930.0,118920.0,0.78887027]
[1759378342014,0.86047462,118930.0,118920.0,0.78887027]
[1759378342414,0.86898462,118930.0,118920.0,0.78887027]
[1759378342721,0.86898462,118930.0,118920.0,0.4796494]
[1759378343018,0.86047462,118930.0,118920.0,0.78887027]
[1759378343820,0.83672339,118930.0,118920.0,0.78887027]
[1759378344318,0.40177067,118940.0,118930.0,0.1185224]
[1759378344516,1.16737067,118940.0,118930.0,0.78854327]
[1759378345215,0.00851,118940.0,118930.0,0.78854327]
[1759378345422,0.30922087,118940.0,118930.0,1.18854327]
[1759378346111,0.39325617,118940.0,118930.0,1.18854327]
[1759378346318,0.40176617,118940.0,118930.0,0.03448]
[1759378347814,0.41463816,118940.0,118930.0,0.03448]
[1759378356324,0.38026733,118940.0,118930.0,0.03448]
[1759378357025,0.38026733,118940.0,118930.0,0.1185224]
[1759378357221,0.02138199,118940.0,118930.0,0.75417244]
[1759378358126,0.02138199,118940.0,118930.0,0.77403027]
[1759378358424,0.02138199,118940.0,118930.0,0.75417244]
[1759378358626,0.02138199,118940.0,118930.0,0.77343743]
[1759378359025,0.10541729,118940.0,118930.0,0.77343743]
[1759378359423,0.10541729,118940.0,118930.0,0.49858739]
[1759378360627,0.02138199,118940.0,118930.0,0.49858739]
[1759378360820,0.01287199,118940.0,118930.0,1.17343743]
[1759378361026,0.92354352,118950.0,118940.0,0.1185153]
[1759378361228,0.92354352,118950.0,118940.0,0.4793153]
[1759378361929,0.9365846,118950.0,118940.0,0.4793153]
[1759378363627,0.92649673,118950.0,118940.0,0.4793153]
[1759378364129,0.91283642,118950.0,118940.0,0.4793153]
[1759378366218,1.18768646,118950.0,118940.0,0.4793153]
[1759378366928,0.91283642,118950.0,118940.0,0.4793153]
[1759378370530,1.18768646,118950.0,118940.0,0.4793153]
[1759378374338,1.18752646,118950.0,118940.0,0.4793153]
[1759378376536,0.42300646,118950.0,118940.0,0.4793153]
[1759378376741,1.18752646,118950.0,118940.0,0.4793153]
[1759378377138,0.42300646,118950.0,118940.0,0.4793153]
[1759378377438,1.18752646,118950.0,118940.0,0.4793153]
[1759378377738,0.14815642,118950.0,118940.0,0.4793153]
[1759378378038,1.18752646,118950.0,118940.0,0.4793153]
[1759378378338,0.91267642,118950.0,118940.0,0.4793153]
[1759378379739,0.14815642,118950.0,118940.0,0.4793153]
[1759378379929,1.18752646,118950.0,118940.0,0.4793153]
[1759378380133,0.91267642,118950.0,118940.0,0.4793153]
[1759378384344,0.14815642,118950.0,118940.0,0.4793153]
[1759378384546,0.91263642,118950.0,118940.0,0.4793153]
[1759378384846,0.14815642,118950.0,118940.0,0.4793153]
[1759378395157,0.42300646,118950.0,118940.0,0.4793153]
[1759378396955,0.14815642,118950.0,118940.0,0.4793153]
[1759378397558,0.14815642,118950.0,118940.0,0.39528]
[1759378398158,0.42300646,118950.0,118940.0,0.39528]
[1759378407768,0.42300646,118950.0,118940.0,0.4793178]
[1759378410973,0.42300646,118950.0,118940.0,0.39528]
[1759378413376,0.14815642,118950.0,118940.0,0.39528]
[1759378415379,0.42300646,118950.0,118940.0,0.39528]
[1759378416477,0.14815642,118950.0,118940.0,0.39528]
[1759378416673,0.092536,118960.0,118950.0,0.1204106]
[1759378416874,0.092536,118960.0,118950.0,0.39718]
[1759378417876,0.36738604,118960.0,118950.0,0.39718]
[1759378418278,0.40161654,118960.0,118950.0,0.39718]
[1759378419582,0.42487458,118960.0,118950.0,0.39718]
[1759378427577,0.42487458,118960.0,118950.0,0.70626054]
[1759378430596,0.42487458,118960.0,118950.0,0.39718]
[1759378430796,0.42487458,118960.0,118950.0,0.70626054]
[1759378431798,0.42487458,118960.0,118950.0,0.76671806]
[1759378432693,0.42487458,118960.0,118950.0,0.45763752]
[1759378432892,0.42487458,118960.0,118950.0,0.76671806]
[1759378436897,0.42487458,118960.0,118950.0,0.85074866]
[1759378439195,0.42487458,118960.0,118950.0,0.45763752]
[1759378443505,0.42487458,118960.0,118950.0,0.09683752]
[1759378448918,1.18895458,118960.0,118950.0,0.09683752]
[1759378449217,0.42487458,118960.0,118950.0,0.09683752]
[1759378449518,1.18895458,118960.0,118950.0,0.09683752]
[1759378450114,1.18895458,118960.0,118950.0,0.03638]
[1759378451824,0.42487458,118960.0,118950.0,0.03638]
[1759378452124,1.18895458,118960.0,118950.0,0.03638]
[1759378453414,1.85883512,118960.0,118950.0,0.03638]
[1759378453618,2.25883512,118960.0,118950.0,0.01323]
[1759378453918,1.94971458,118960.0,118950.0,0.01323]
[1759378454121,1.94971458,118960.0,118950.0,0.03587]
[1759378456923,1.58891458,118960.0,118950.0,0.03587]
[1759378459427,0.82487458,118960.0,118950.0,0.03587]
[1759378459622,1.58887458,118960.0,118950.0,0.03587]
[1759378465123,1.57521483,118960.0,118950.0,0.03587]
[1759378465330,1.56512763,118960.0,118950.0,0.03587]
[1759378466224,0.80112763,118960.0,118950.0,0.03587]
[1759378466530,1.56504763,118960.0,118950.0,0.03587]
[1759378467830,0.80112763,118960.0,118950.0,0.03587]
[1759378468225,1.56504763,118960.0,118950.0,0.03587]
[1759378469728,1.56500763,118960.0,118950.0,0.03587]
[1759378469918,1.56500763,118960.0,118950.0,0.05545264]
[1759378471026,0.80112763,118960.0,118950.0,0.05545264]
[1759378471330,1.92580763,118960.0,118950.0,0.05545264]
[1759378471825,1.92580763,118960.0,118950.0,0.03587]
[1759378479142,1.16192763,118960.0,118950.0,0.03587]
[1759378479337,1.92572763,118960.0,118950.0,0.03587]
[1759378479640,1.50198051,118960.0,118950.0,0.03587]
[1759378479942,0.73818051,118960.0,118950.0,0.03587]
[1759378480142,1.50198051,118960.0,118950.0,0.03587]
[1759378480346,1.46768666,118960.0,118950.0,0.03587]
[1759378481844,1.46768666,118960.0,118950.0,0.05526098]
[1759378482246,0.70388666,118960.0,118950.0,0.05526098]
[1759378482445,1.46764666,118960.0,118950.0,0.05526098]
[1759378482945,1.46764666,118960.0,118950.0,0.03587]
[1759378485146,1.46760666,118960.0,118950.0,0.03587]
[1759378485346,1.46760666,118960.0,118950.0,0.05506459]
[1759378487448,1.46760666,118960.0,118950.0,0.03587]
[1759378487950,0.70388666,118960.0,118950.0,0.03587]
[1759378488152,1.46760666,118960.0,118950.0,0.05518531]
[1759378488353,1.46756666,118960.0,118950.0,0.05518531]
[1759378488854,1.46756666,118960.0,118950.0,0.03587]
[1759378490451,0.70388666,118960.0,118950.0,0.03587]
[1759378490651,1.46756666,118960.0,118950.0,0.03587]
[1759378493253,1.19277997,118960.0,118950.0,0.03587]
[1759378493550,1.46756666,118960.0,118950.0,0.05537088]
[1759378494246,0.0925477,118940.0,118930.0,0.37416]
[1759378494551,1.10722527,118940.0,118930.0,0.15960284]
[1759378494948,1.10722527,118940.0,118930.0,0.19364284]
[1759378495353,1.10722527,118940.0,118930.0,0.1180848]
[1759378495853,0.34358527,118940.0,118930.0,0.1180848]
[1759378496056,0.83239858,118940.0,118930.0,0.1180848]
[1759378496352,1.10718527,118940.0,118930.0,0.1180848]
[1759378496553,0.34358527,118940.0,118930.0,0.1180848]
[1759378496759,1.10718527,118940.0,118930.0,0.1180848]
[1759378497856,0.90088915,118940.0,118930.0,0.1180848]
[1759378498153,1.17567584,118940.0,118930.0,0.1180848]
[1759378498353,0.41203584,118940.0,118930.0,0.1180848]
[1759378498553,0.35174726,118940.0,118930.0,0.4788848]
[1759378498746,0.07696057,118940.0,118930.0,0.8788848]
[1759378498951,0.84056057,118940.0,118930.0,0.8788848]
[1759378499352,0.07696057,118940.0,118930.0,0.8788848]
[1759378499556,0.84056057,118940.0,118930.0,0.8788848]
[1759378500354,0.07696057,118940.0,118930.0,0.8788848]
[1759378500653,0.84056057,118940.0,118930.0,0.8788848]